[Event "Titled Tuesday Blitz May 23 Early 2023"]
[White "merinasian"]
[Black "Bayo Milagro, Alvaro"]
[BlackFideId "22275240"]
[WhiteElo "2480"]
[BlackElo "2270"]
[Result "1-0"]
[Round "08"]
[TimeControl "180+2"]
[Date "2023.05.23"]
[WhiteClock "0:00:06"]
[BlackClock "0:00:00"]

1. d4 {[%clk 0:03:00]}  Nf6 {[%clk 0:02:59]} 2. Nf3 {[%clk 0:02:57]}  d5 {[%clk 0:02:59]} 3. g3 {[%clk 0:02:55]}  c6 {[%clk 0:02:53]} 4. Bg2 {[%clk 0:02:53]}  Bg4 {[%clk 0:02:54]} 5. O-O {[%clk 0:02:44]}  Nbd7 {[%clk 0:02:54]} 6. c4 {[%clk 0:02:22]}  e6 {[%clk 0:02:53]} 7. h3 {[%clk 0:02:08]}  Bh5 {[%clk 0:02:53]} 8. cxd5 {[%clk 0:02:02]}  exd5 {[%clk 0:02:51]} 9. Nc3 {[%clk 0:02:02]}  Be7 {[%clk 0:02:44]} 10. Ne5 {[%clk 0:01:50]}  O-O {[%clk 0:02:43]} 11. f4 {[%clk 0:01:45]}  c5 {[%clk 0:02:13]} 12. Be3 {[%clk 0:01:24]}  cxd4 {[%clk 0:01:41]} 13. Bxd4 {[%clk 0:01:22]}  Nxe5 {[%clk 0:01:40]} 14. Bxe5 {[%clk 0:01:19]}  Nd7 {[%clk 0:01:40]} 15. Bd4 {[%clk 0:01:12]}  f6 {[%clk 0:01:23]} 16. Bxd5+ {[%clk 0:00:57]}  Bf7 {[%clk 0:01:21]} 17. Bxb7 {[%clk 0:00:56]}  Rb8 {[%clk 0:01:21]} 18. Bg2 {[%clk 0:00:56]}  Rxb2 {[%clk 0:01:20]} 19. Nd5 {[%clk 0:00:56]}  Bc5 {[%clk 0:01:08]} 20. Bxc5 {[%clk 0:00:50]}  Nxc5 {[%clk 0:01:09]} 21. Qd4 {[%clk 0:00:50]}  Rc2 {[%clk 0:01:03]} 22. Rac1 {[%clk 0:00:45]}  Ne6 {[%clk 0:00:59]} 23. Qd3 {[%clk 0:00:36]}  Rxa2 {[%clk 0:00:54]} 24. Be4 {[%clk 0:00:30]}  h6 {[%clk 0:00:37]} 25. Rfd1 {[%clk 0:00:30]}  Re8 {[%clk 0:00:27]} 26. Qc4 {[%clk 0:00:25]}  Qa5 {[%clk 0:00:21]} 27. Qc6 {[%clk 0:00:18]}  Qa3 {[%clk 0:00:17]} 28. Bf3 {[%clk 0:00:17]}  Nd4 {[%clk 0:00:13]} 29. Rxd4 {[%clk 0:00:15]}  Ra1 {[%clk 0:00:11]} 30. Rdd1 {[%clk 0:00:14]}  Rxc1 {[%clk 0:00:11]} 31. Qxc1 {[%clk 0:00:14]}  Qa2 {[%clk 0:00:08]} 32. Qd2 {[%clk 0:00:14]}  Qb3 {[%clk 0:00:08]} 33. Kg2 {[%clk 0:00:15]}  Kh8 {[%clk 0:00:08]} 34. Qd3 {[%clk 0:00:15]}  Qb2 {[%clk 0:00:07]} 35. Qd2 {[%clk 0:00:15]}  Qb3 {[%clk 0:00:07]} 36. Qd3 {[%clk 0:00:13]}  Qb2 {[%clk 0:00:08]} 37. Rd2 {[%clk 0:00:13]}  Qc1 {[%clk 0:00:07]} 38. Ne3 {[%clk 0:00:13]}  Qc5 {[%clk 0:00:06]} 39. Nf5 {[%clk 0:00:12]}  Bg6 {[%clk 0:00:04]} 40. e4 {[%clk 0:00:10]}  Rb8 {[%clk 0:00:05]} 41. Nd6 {[%clk 0:00:09]}  Rb4 {[%clk 0:00:02]} 42. f5 {[%clk 0:00:09]}  Bh5 {[%clk 0:00:01]} 43. Bxh5 {[%clk 0:00:08]}  Ra4 {[%clk 0:00:02]} 44. Bf3 {[%clk 0:00:08]}  Ra1 {[%clk 0:00:02]} 45. Nf7+ {[%clk 0:00:08]}  Kh7 {[%clk 0:00:02]} 46. Rf2 {[%clk 0:00:08]}  Qc1 {[%clk 0:00:02]} 47. Be2 {[%clk 0:00:07]}  Qg1+ {[%clk 0:00:02]} 48. Kf3 {[%clk 0:00:07]}  Qh1+ {[%clk 0:00:02]} 49. Ke3 {[%clk 0:00:08]}  Rc1 {[%clk 0:00:00]} 50. Qd8 {[%clk 0:00:06]} 1-0


[Site "https://www.chess.com"]

[Event "Titled Tuesday Blitz May 23 Early 2023"]
[White "Spata, German"]
[Black "Shubenkova, Veronika"]
[WhiteFideId "113026"]
[BlackFideId "44124040"]
[WhiteElo "2260"]
[BlackElo "2060"]
[Result "1-0"]
[Round "08"]
[TimeControl "180+2"]
[Date "2023.05.23"]
[WhiteClock "0:00:10"]
[BlackClock "0:00:10"]

1. g3 {[%clk 0:02:48]}  d5 {[%clk 0:02:57]} 2. Bg2 {[%clk 0:02:47]}  Nf6 {[%clk 0:02:58]} 3. Nf3 {[%clk 0:02:47]}  g6 {[%clk 0:02:58]} 4. d3 {[%clk 0:02:47]}  Bg7 {[%clk 0:02:58]} 5. O-O {[%clk 0:02:48]}  O-O {[%clk 0:02:58]} 6. Nbd2 {[%clk 0:02:46]}  c5 {[%clk 0:02:58]} 7. e4 {[%clk 0:02:43]}  d4 {[%clk 0:02:58]} 8. Nc4 {[%clk 0:02:42]}  Nc6 {[%clk 0:02:57]} 9. a4 {[%clk 0:02:41]}  Nd7 {[%clk 0:02:57]} 10. Nfd2 {[%clk 0:02:39]}  e5 {[%clk 0:02:56]} 11. f4 {[%clk 0:02:39]}  f6 {[%clk 0:02:54]} 12. Nf3 {[%clk 0:02:38]}  Qe7 {[%clk 0:02:54]} 13. Bd2 {[%clk 0:02:35]}  b6 {[%clk 0:02:53]} 14. Rf2 {[%clk 0:02:31]}  a6 {[%clk 0:02:53]} 15. fxe5 {[%clk 0:02:26]}  Ndxe5 {[%clk 0:02:49]} 16. Nxb6 {[%clk 0:02:21]}  Rb8 {[%clk 0:02:42]} 17. Nd5 {[%clk 0:02:20]}  Qd6 {[%clk 0:02:39]} 18. Nxe5 {[%clk 0:02:15]}  Nxe5 {[%clk 0:02:39]} 19. b3 {[%clk 0:02:15]}  Bg4 {[%clk 0:02:37]} 20. Qc1 {[%clk 0:02:11]}  f5 {[%clk 0:02:36]} 21. exf5 {[%clk 0:01:52]}  Bxf5 {[%clk 0:02:31]} 22. Bf4 {[%clk 0:01:48]}  Rbe8 {[%clk 0:02:28]} 23. Qd2 {[%clk 0:01:40]}  Qd8 {[%clk 0:02:09]} 24. Re1 {[%clk 0:01:16]}  Ng4 {[%clk 0:02:07]} 25. Rfe2 {[%clk 0:01:13]}  Rxe2 {[%clk 0:02:05]} 26. Qxe2 {[%clk 0:01:12]}  Kh8 {[%clk 0:01:56]} 27. h3 {[%clk 0:01:11]}  Ne3 {[%clk 0:01:46]} 28. Nxe3 {[%clk 0:01:08]}  dxe3 {[%clk 0:01:45]} 29. Qxe3 {[%clk 0:01:01]}  Kg8 {[%clk 0:01:04]} 30. Kh2 {[%clk 0:00:44]}  Bd4 {[%clk 0:00:59]} 31. Qe7 {[%clk 0:00:41]}  Qxe7 {[%clk 0:00:56]} 32. Rxe7 {[%clk 0:00:41]}  Bf6 {[%clk 0:00:37]} 33. Bd5+ {[%clk 0:00:34]}  Kh8 {[%clk 0:00:37]} 34. Be5 {[%clk 0:00:32]}  Bxe5 {[%clk 0:00:27]} 35. Rxe5 {[%clk 0:00:31]}  Bc8 {[%clk 0:00:27]} 36. Kg2 {[%clk 0:00:28]}  Kg7 {[%clk 0:00:25]} 37. Re7+ {[%clk 0:00:24]}  Kh6 {[%clk 0:00:25]} 38. g4 {[%clk 0:00:21]}  Rd8 {[%clk 0:00:18]} 39. Be4 {[%clk 0:00:18]}  Kg5 {[%clk 0:00:17]} 40. Kg3 {[%clk 0:00:18]}  h5 {[%clk 0:00:16]} 41. h4+ {[%clk 0:00:12]}  Kf6 {[%clk 0:00:16]} 42. Ra7 {[%clk 0:00:10]}  hxg4 {[%clk 0:00:15]} 43. Ra8 {[%clk 0:00:09]}  Ke5 {[%clk 0:00:15]} 44. Bb7 {[%clk 0:00:07]}  Rf8 {[%clk 0:00:10]} 45. Rxc8 {[%clk 0:00:06]}  Rf1 {[%clk 0:00:08]} 46. Rxc5+ {[%clk 0:00:06]}  Kd4 {[%clk 0:00:08]} 47. Rc4+ {[%clk 0:00:06]}  Ke3 {[%clk 0:00:09]} 48. Kxg4 {[%clk 0:00:05]}  Rg1+ {[%clk 0:00:09]} 49. Kh3 {[%clk 0:00:06]}  g5 {[%clk 0:00:05]} 50. hxg5 {[%clk 0:00:05]}  Rxg5 {[%clk 0:00:05]} 51. Bxa6 {[%clk 0:00:04]}  Kf2 {[%clk 0:00:04]} 52. Kh4 {[%clk 0:00:04]}  Rg1 {[%clk 0:00:04]} 53. Bb7 {[%clk 0:00:04]}  Ke3 {[%clk 0:00:04]} 54. Be4 {[%clk 0:00:04]}  Kf4 {[%clk 0:00:03]} 55. Kh5 {[%clk 0:00:04]}  Rg8 {[%clk 0:00:02]} 56. a5 {[%clk 0:00:03]}  Ke5 {[%clk 0:00:03]} 57. a6 {[%clk 0:00:03]}  Rh8+ {[%clk 0:00:04]} 58. Kg4 {[%clk 0:00:03]}  Rg8+ {[%clk 0:00:04]} 59. Kf3 {[%clk 0:00:03]}  Rf8+ {[%clk 0:00:05]} 60. Ke2 {[%clk 0:00:04]}  Re8 {[%clk 0:00:05]} 61. Kd2 {[%clk 0:00:04]}  Kd6 {[%clk 0:00:06]} 62. Bb7 {[%clk 0:00:04]}  Re7 {[%clk 0:00:03]} 63. Kc3 {[%clk 0:00:05]}  Re8 {[%clk 0:00:02]} 64. a7 {[%clk 0:00:05]}  Rh8 {[%clk 0:00:02]} 65. a8=Q {[%clk 0:00:04]}  Rxa8 {[%clk 0:00:03]} 66. Bxa8 {[%clk 0:00:05]}  Kd7 {[%clk 0:00:04]} 67. b4 {[%clk 0:00:05]}  Kd6 {[%clk 0:00:05]} 68. b5 {[%clk 0:00:06]}  Kd7 {[%clk 0:00:06]} 69. b6 {[%clk 0:00:07]}  Kd8 {[%clk 0:00:06]} 70. b7 {[%clk 0:00:08]}  Kd7 {[%clk 0:00:07]} 71. b8=Q {[%clk 0:00:08]}  Ke6 {[%clk 0:00:08]} 72. Qb6+ {[%clk 0:00:08]}  Kf5 {[%clk 0:00:08]} 73. Qb5+ {[%clk 0:00:08]}  Kg6 {[%clk 0:00:08]} 74. Rc6+ {[%clk 0:00:09]}  Kh7 {[%clk 0:00:09]} 75. Qb7+ {[%clk 0:00:09]}  Kh8 {[%clk 0:00:10]} 76. Rc8# {[%clk 0:00:10]} 1-0


[Site "https://www.chess.com"]

[Event "Titled Tuesday Blitz May 23 Early 2023"]
[White "Srdanovic, Jovana"]
[Black "robertoalejandro10"]
[WhiteFideId "954810"]
[WhiteElo "2169"]
[BlackElo "2565"]
[Result "0-1"]
[Round "08"]
[TimeControl "180+2"]
[Date "2023.05.23"]
[WhiteClock "0:00:00"]
[BlackClock "0:00:32"]

1. d4 {[%clk 0:03:00]}  Nf6 {[%clk 0:02:59]} 2. c4 {[%clk 0:02:59]}  c5 {[%clk 0:03:00]} 3. d5 {[%clk 0:02:59]}  d6 {[%clk 0:03:00]} 4. Nc3 {[%clk 0:02:58]}  g6 {[%clk 0:02:59]} 5. e4 {[%clk 0:02:57]}  Bg7 {[%clk 0:03:00]} 6. f4 {[%clk 0:02:57]}  O-O {[%clk 0:03:00]} 7. Bd3 {[%clk 0:02:57]}  Na6 {[%clk 0:03:01]} 8. h3 {[%clk 0:02:56]}  Nc7 {[%clk 0:03:01]} 9. Nf3 {[%clk 0:02:56]}  a6 {[%clk 0:03:01]} 10. a4 {[%clk 0:02:54]}  Rb8 {[%clk 0:03:02]} 11. O-O {[%clk 0:02:53]}  b5 {[%clk 0:03:02]} 12. axb5 {[%clk 0:02:52]}  axb5 {[%clk 0:03:03]} 13. cxb5 {[%clk 0:02:51]}  Bd7 {[%clk 0:03:04]} 14. Bc4 {[%clk 0:02:41]}  Nxb5 {[%clk 0:03:03]} 15. e5 {[%clk 0:02:36]}  Ne8 {[%clk 0:03:01]} 16. Qe2 {[%clk 0:02:31]}  Nd4 {[%clk 0:02:49]} 17. Nxd4 {[%clk 0:02:04]}  cxd4 {[%clk 0:02:50]} 18. Nd1 {[%clk 0:01:51]}  Qc7 {[%clk 0:02:46]} 19. Re1 {[%clk 0:01:31]}  Qc5 {[%clk 0:02:27]} 20. Nf2 {[%clk 0:01:28]}  Nc7 {[%clk 0:02:24]} 21. Ne4 {[%clk 0:01:11]}  Qb6 {[%clk 0:02:24]} 22. Nf2 {[%clk 0:01:06]}  Bb5 {[%clk 0:02:09]} 23. Bxb5 {[%clk 0:00:57]}  Qxb5 {[%clk 0:02:09]} 24. Qe4 {[%clk 0:00:55]}  Qxd5 {[%clk 0:02:07]} 25. exd6 {[%clk 0:00:44]}  Qxd6 {[%clk 0:02:00]} 26. Nd3 {[%clk 0:00:42]}  Ne6 {[%clk 0:01:49]} 27. Ra5 {[%clk 0:00:37]}  Qb6 {[%clk 0:01:42]} 28. Rd5 {[%clk 0:00:33]}  Rfe8 {[%clk 0:01:26]} 29. f5 {[%clk 0:00:32]}  Nc7 {[%clk 0:01:26]} 30. fxg6 {[%clk 0:00:30]}  hxg6 {[%clk 0:01:24]} 31. Rg5 {[%clk 0:00:28]}  e5 {[%clk 0:00:59]} 32. Nxe5 {[%clk 0:00:23]}  f6 {[%clk 0:00:57]} 33. Qxg6 {[%clk 0:00:20]}  fxg5 {[%clk 0:00:40]} 34. Qf7+ {[%clk 0:00:11]}  Kh7 {[%clk 0:00:38]} 35. Qf5+ {[%clk 0:00:00]}  Kh8 {[%clk 0:00:32]} 0-1


[Site "https://www.chess.com"]

[Event "Titled Tuesday Blitz May 23 Early 2023"]
[White "Senft, Sean"]
[Black "Han, Yichen"]
[WhiteFideId "2044960"]
[BlackFideId "1054430"]
[WhiteElo "1989"]
[BlackElo "2342"]
[Result "0-1"]
[Round "08"]
[TimeControl "180+2"]
[Date "2023.05.23"]
[WhiteClock "0:00:00"]
[BlackClock "0:00:03"]

1. d4 {[%clk 0:03:00]}  d5 {[%clk 0:02:59]} 2. c4 {[%clk 0:03:01]}  e6 {[%clk 0:02:59]} 3. Nc3 {[%clk 0:03:01]}  c5 {[%clk 0:02:59]} 4. cxd5 {[%clk 0:03:01]}  cxd4 {[%clk 0:02:59]} 5. Qxd4 {[%clk 0:03:01]}  Nc6 {[%clk 0:02:59]} 6. Qd1 {[%clk 0:03:01]}  exd5 {[%clk 0:02:59]} 7. e3 {[%clk 0:03:01]}  Nf6 {[%clk 0:02:56]} 8. Nf3 {[%clk 0:03:01]}  Bb4 {[%clk 0:02:49]} 9. Be2 {[%clk 0:03:00]}  Ne4 {[%clk 0:02:47]} 10. Qc2 {[%clk 0:02:57]}  Qf6 {[%clk 0:02:37]} 11. Bd2 {[%clk 0:02:54]}  Bf5 {[%clk 0:02:36]} 12. Qb3 {[%clk 0:02:47]}  Nxd2 {[%clk 0:02:22]} 13. Nxd2 {[%clk 0:02:47]}  O-O {[%clk 0:02:10]} 14. O-O {[%clk 0:02:36]}  d4 {[%clk 0:02:00]} 15. exd4 {[%clk 0:02:31]}  Qxd4 {[%clk 0:01:59]} 16. Nf3 {[%clk 0:02:28]}  Qc5 {[%clk 0:01:44]} 17. Rac1 {[%clk 0:02:26]}  Be6 {[%clk 0:01:22]} 18. Qa4 {[%clk 0:02:17]}  Qa5 {[%clk 0:01:22]} 19. Qxa5 {[%clk 0:02:15]}  Bxa5 {[%clk 0:01:23]} 20. a3 {[%clk 0:02:05]}  Rad8 {[%clk 0:01:20]} 21. Bb5 {[%clk 0:01:58]}  Nd4 {[%clk 0:01:14]} 22. Nxd4 {[%clk 0:01:54]}  Rxd4 {[%clk 0:01:15]} 23. Rfd1 {[%clk 0:01:48]}  Rfd8 {[%clk 0:01:06]} 24. Rxd4 {[%clk 0:01:46]}  Rxd4 {[%clk 0:01:07]} 25. b4 {[%clk 0:01:23]}  Bb6 {[%clk 0:01:01]} 26. Rd1 {[%clk 0:01:21]}  a6 {[%clk 0:00:51]} 27. Be2 {[%clk 0:01:09]}  Bb3 {[%clk 0:00:47]} 28. Rxd4 {[%clk 0:01:05]}  Bxd4 {[%clk 0:00:48]} 29. Nd1 {[%clk 0:00:58]}  f5 {[%clk 0:00:40]} 30. Kf1 {[%clk 0:00:55]}  g6 {[%clk 0:00:36]} 31. Ke1 {[%clk 0:00:53]}  Kg7 {[%clk 0:00:33]} 32. Kd2 {[%clk 0:00:50]}  Kf6 {[%clk 0:00:26]} 33. f3 {[%clk 0:00:40]}  h5 {[%clk 0:00:20]} 34. Nc3 {[%clk 0:00:40]}  h4 {[%clk 0:00:14]} 35. b5 {[%clk 0:00:37]}  a5 {[%clk 0:00:13]} 36. Kd3 {[%clk 0:00:33]}  h3 {[%clk 0:00:06]} 37. gxh3 {[%clk 0:00:30]}  Bg1 {[%clk 0:00:07]} 38. Bd1 {[%clk 0:00:17]}  Be6 {[%clk 0:00:06]} 39. Na4 {[%clk 0:00:15]}  Bd7 {[%clk 0:00:03]} 40. Kc4 {[%clk 0:00:12]}  Be6+ {[%clk 0:00:03]} 41. Kd3 {[%clk 0:00:12]}  Kg5 {[%clk 0:00:04]} 42. Ke2 {[%clk 0:00:07]}  Kh4 {[%clk 0:00:04]} 43. Kf1 {[%clk 0:00:07]}  Bd4 {[%clk 0:00:03]} 44. Kg2 {[%clk 0:00:06]}  f4 {[%clk 0:00:04]} 45. Bc2 {[%clk 0:00:05]}  Bxh3+ {[%clk 0:00:04]} 46. Kh1 {[%clk 0:00:03]}  g5 {[%clk 0:00:05]} 47. Bd1 {[%clk 0:00:03]}  Be6 {[%clk 0:00:04]} 48. Bc2 {[%clk 0:00:03]}  g4 {[%clk 0:00:02]} 49. fxg4 {[%clk 0:00:01]}  Bxg4 {[%clk 0:00:03]} 50. Kg2 {[%clk 0:00:01]}  f3+ {[%clk 0:00:03]} 51. Kf1 {[%clk 0:00:02]}  Bh3+ {[%clk 0:00:03]} 52. Ke1 {[%clk 0:00:01]}  f2+ {[%clk 0:00:03]} 53. Ke2 {[%clk 0:00:00]}  f1=Q+ {[%clk 0:00:03]} 0-1


[Site "https://www.chess.com"]

[Event "Titled Tuesday Blitz May 23 Early 2023"]
[White "Rios Escobar, Adan"]
[Black "Camilla_Lee"]
[WhiteFideId "3403645"]
[WhiteElo "2456"]
[BlackElo "2669"]
[Result "0-1"]
[Round "08"]
[TimeControl "180+2"]
[Date "2023.05.23"]
[WhiteClock "0:01:26"]
[BlackClock "0:01:54"]

1. d4 {[%clk 0:02:55]}  Nf6 {[%clk 0:02:59]} 2. g3 {[%clk 0:02:54]}  g6 {[%clk 0:02:57]} 3. Bg2 {[%clk 0:02:55]}  d5 {[%clk 0:02:56]} 4. Nf3 {[%clk 0:02:52]}  Bg7 {[%clk 0:02:56]} 5. c4 {[%clk 0:02:53]}  c6 {[%clk 0:02:55]} 6. cxd5 {[%clk 0:02:52]}  cxd5 {[%clk 0:02:55]} 7. Nc3 {[%clk 0:02:53]}  Nc6 {[%clk 0:02:54]} 8. Ne5 {[%clk 0:02:52]}  O-O {[%clk 0:02:53]} 9. O-O {[%clk 0:02:50]}  e6 {[%clk 0:02:52]} 10. Bg5 {[%clk 0:02:48]}  h6 {[%clk 0:02:51]} 11. Bf4 {[%clk 0:02:45]}  Nd7 {[%clk 0:02:49]} 12. Qd2 {[%clk 0:02:10]}  Ndxe5 {[%clk 0:02:44]} 13. Bxe5 {[%clk 0:02:03]}  Nxe5 {[%clk 0:02:41]} 14. dxe5 {[%clk 0:02:03]}  Bxe5 {[%clk 0:02:41]} 15. Qxh6 {[%clk 0:01:56]}  Bd7 {[%clk 0:02:34]} 16. e4 {[%clk 0:01:53]}  d4 {[%clk 0:02:28]} 17. Ne2 {[%clk 0:01:50]}  Bb5 {[%clk 0:02:17]} 18. Bf3 {[%clk 0:01:47]}  d3 {[%clk 0:02:12]} 19. Nc3 {[%clk 0:01:46]}  Bc4 {[%clk 0:02:07]} 20. Rfd1 {[%clk 0:01:43]}  Qf6 {[%clk 0:01:56]} 21. Rac1 {[%clk 0:01:26]}  Qxf3 {[%clk 0:01:54]} 0-1


[Site "https://www.chess.com"]

[Event "Titled Tuesday Blitz May 23 Early 2023"]
[White "Kielinkei"]
[Black "Nikologorskiy, Konstantin"]
[BlackFideId "24111708"]
[WhiteElo "2447"]
[BlackElo "2273"]
[Result "0-1"]
[Round "08"]
[TimeControl "180+2"]
[Date "2023.05.23"]
[WhiteClock "0:00:08"]
[BlackClock "0:02:01"]

1. d4 {[%clk 0:03:00]}  Nf6 {[%clk 0:02:57]} 2. c4 {[%clk 0:03:01]}  e6 {[%clk 0:02:58]} 3. g3 {[%clk 0:02:59]}  Be7 {[%clk 0:02:58]} 4. Bg2 {[%clk 0:02:59]}  O-O {[%clk 0:02:59]} 5. Nf3 {[%clk 0:02:58]}  d5 {[%clk 0:02:59]} 6. O-O {[%clk 0:02:58]}  dxc4 {[%clk 0:03:00]} 7. Qc2 {[%clk 0:02:58]}  a6 {[%clk 0:02:59]} 8. a4 {[%clk 0:02:58]}  Bd7 {[%clk 0:02:59]} 9. Qxc4 {[%clk 0:02:58]}  Bc6 {[%clk 0:02:59]} 10. Bf4 {[%clk 0:02:54]}  Bd5 {[%clk 0:03:00]} 11. Qc2 {[%clk 0:02:51]}  Be4 {[%clk 0:02:59]} 12. Qc1 {[%clk 0:02:51]}  Nc6 {[%clk 0:02:58]} 13. Nbd2 {[%clk 0:02:05]}  Bd5 {[%clk 0:02:53]} 14. Qc2 {[%clk 0:01:48]}  Nb4 {[%clk 0:02:50]} 15. Qd1 {[%clk 0:01:43]}  Rc8 {[%clk 0:02:48]} 16. Rc1 {[%clk 0:01:21]}  c5 {[%clk 0:02:40]} 17. dxc5 {[%clk 0:01:22]}  Rxc5 {[%clk 0:02:41]} 18. Nb3 {[%clk 0:01:15]}  Rxc1 {[%clk 0:02:32]} 19. Nxc1 {[%clk 0:01:16]}  Qb6 {[%clk 0:02:28]} 20. Be3 {[%clk 0:01:12]}  Bc5 {[%clk 0:02:23]} 21. Bxc5 {[%clk 0:01:10]}  Qxc5 {[%clk 0:02:24]} 22. Nd3 {[%clk 0:01:10]}  Nxd3 {[%clk 0:02:24]} 23. Qxd3 {[%clk 0:01:11]}  Rc8 {[%clk 0:02:22]} 24. Nd2 {[%clk 0:00:29]}  Bxg2 {[%clk 0:02:18]} 25. Kxg2 {[%clk 0:00:30]}  Qc6+ {[%clk 0:02:18]} 26. Qf3 {[%clk 0:00:28]}  Kf8 {[%clk 0:02:09]} 27. Qxc6 {[%clk 0:00:26]}  Rxc6 {[%clk 0:02:10]} 28. Rd1 {[%clk 0:00:21]}  Rc2 {[%clk 0:02:09]} 29. b3 {[%clk 0:00:22]}  Nd5 {[%clk 0:02:08]} 30. Kf3 {[%clk 0:00:22]}  Nc3 {[%clk 0:02:08]} 31. Re1 {[%clk 0:00:13]}  Rxd2 {[%clk 0:02:08]} 32. Rc1 {[%clk 0:00:14]}  Nd5 {[%clk 0:02:05]} 33. e4 {[%clk 0:00:12]}  Nf6 {[%clk 0:01:57]} 34. Rc7 {[%clk 0:00:10]}  Rd3+ {[%clk 0:01:57]} 35. Ke2 {[%clk 0:00:09]}  Rxb3 {[%clk 0:01:58]} 36. e5 {[%clk 0:00:10]}  Nd5 {[%clk 0:01:58]} 37. Rc8+ {[%clk 0:00:10]}  Ke7 {[%clk 0:01:59]} 38. Rh8 {[%clk 0:00:10]}  h6 {[%clk 0:01:56]} 39. f4 {[%clk 0:00:08]}  g6 {[%clk 0:01:57]} 40. h4 {[%clk 0:00:08]}  b5 {[%clk 0:01:58]} 41. axb5 {[%clk 0:00:07]}  axb5 {[%clk 0:01:58]} 42. Rxh6 {[%clk 0:00:07]}  Rxg3 {[%clk 0:01:59]} 43. h5 {[%clk 0:00:08]}  gxh5 {[%clk 0:01:59]} 44. Rxh5 {[%clk 0:00:09]}  Nxf4+ {[%clk 0:02:00]} 45. Kf2 {[%clk 0:00:08]}  Nxh5 {[%clk 0:02:01]} 0-1


[Site "https://www.chess.com"]

[Event "Titled Tuesday Blitz May 23 Early 2023"]
[White "Ramirez Vido, Robert Yorisan"]
[Black "Danielyan, Vahe"]
[WhiteFideId "3513823"]
[BlackFideId "13304828"]
[WhiteElo "2446"]
[BlackElo "2423"]
[Result "0-1"]
[Round "08"]
[TimeControl "180+2"]
[Date "2023.05.23"]
[WhiteClock "0:00:00"]
[BlackClock "0:01:55"]

1. e4 {[%clk 0:03:00]}  e6 {[%clk 0:03:00]} 2. d3 {[%clk 0:02:56]}  d5 {[%clk 0:03:00]} 3. Nd2 {[%clk 0:02:55]}  c5 {[%clk 0:03:00]} 4. Ngf3 {[%clk 0:02:54]}  Nc6 {[%clk 0:03:00]} 5. g3 {[%clk 0:02:54]}  Nf6 {[%clk 0:03:00]} 6. Bg2 {[%clk 0:02:53]}  g6 {[%clk 0:02:57]} 7. O-O {[%clk 0:02:53]}  Bg7 {[%clk 0:02:58]} 8. Re1 {[%clk 0:02:52]}  O-O {[%clk 0:02:58]} 9. exd5 {[%clk 0:02:51]}  exd5 {[%clk 0:02:55]} 10. Nb3 {[%clk 0:02:50]}  b6 {[%clk 0:02:54]} 11. d4 {[%clk 0:02:50]}  c4 {[%clk 0:02:52]} 12. Nbd2 {[%clk 0:02:49]}  Bf5 {[%clk 0:02:52]} 13. c3 {[%clk 0:02:49]}  Re8 {[%clk 0:02:45]} 14. Ne5 {[%clk 0:02:43]}  Nxe5 {[%clk 0:02:41]} 15. dxe5 {[%clk 0:02:43]}  Ng4 {[%clk 0:02:35]} 16. f4 {[%clk 0:02:32]}  d4 {[%clk 0:02:31]} 17. Nxc4 {[%clk 0:02:14]}  Qc7 {[%clk 0:02:02]} 18. Nd6 {[%clk 0:01:58]}  dxc3 {[%clk 0:02:02]} 19. Bf3 {[%clk 0:00:14]}  Qc5+ {[%clk 0:01:58]} 20. Be3 {[%clk 0:00:08]}  Nxe3 {[%clk 0:01:58]} 21. Rxe3 {[%clk 0:00:08]}  Qxe3+ {[%clk 0:01:57]} 22. Kg2 {[%clk 0:00:09]}  cxb2 {[%clk 0:01:56]} 23. Rb1 {[%clk 0:00:06]}  Bxb1 {[%clk 0:01:55]} 24. Qxb1 {[%clk 0:00:05]}  Qc1 {[%clk 0:01:56]} 25. Be4 {[%clk 0:00:00]}  Qxb1 {[%clk 0:01:55]} 0-1


[Site "https://www.chess.com"]

[Event "Titled Tuesday Blitz May 23 Early 2023"]
[White "Vestby-Ellingsen, Mads"]
[Black "Manukian, Artak"]
[WhiteFideId "1520857"]
[BlackFideId "13301373"]
[WhiteElo "2244"]
[BlackElo "2130"]
[Result "0-1"]
[Round "08"]
[TimeControl "180+2"]
[Date "2023.05.23"]
[WhiteClock "0:00:15"]
[BlackClock "0:00:19"]

1. d4 {[%clk 0:03:00]}  d5 {[%clk 0:02:54]} 2. c4 {[%clk 0:03:00]}  dxc4 {[%clk 0:02:47]} 3. Nf3 {[%clk 0:02:59]}  Nf6 {[%clk 0:02:46]} 4. e3 {[%clk 0:02:59]}  e6 {[%clk 0:02:45]} 5. Bxc4 {[%clk 0:02:59]}  c5 {[%clk 0:02:45]} 6. O-O {[%clk 0:02:59]}  a6 {[%clk 0:02:44]} 7. b3 {[%clk 0:02:57]}  Nc6 {[%clk 0:02:42]} 8. Bb2 {[%clk 0:02:56]}  b5 {[%clk 0:02:36]} 9. Be2 {[%clk 0:02:56]}  Bb7 {[%clk 0:02:36]} 10. Nbd2 {[%clk 0:02:53]}  cxd4 {[%clk 0:02:33]} 11. Nxd4 {[%clk 0:02:53]}  Nxd4 {[%clk 0:02:33]} 12. Bxd4 {[%clk 0:02:52]}  Be7 {[%clk 0:02:30]} 13. a4 {[%clk 0:02:49]}  bxa4 {[%clk 0:02:22]} 14. Rxa4 {[%clk 0:02:47]}  O-O {[%clk 0:02:22]} 15. Qa1 {[%clk 0:02:47]}  a5 {[%clk 0:02:12]} 16. Nc4 {[%clk 0:02:39]}  Bb4 {[%clk 0:02:05]} 17. Bb6 {[%clk 0:02:27]}  Qc8 {[%clk 0:01:39]} 18. Bxa5 {[%clk 0:02:23]}  Bxa5 {[%clk 0:01:34]} 19. Rxa5 {[%clk 0:02:21]}  Rxa5 {[%clk 0:01:24]} 20. Nxa5 {[%clk 0:02:19]}  Bd5 {[%clk 0:01:22]} 21. b4 {[%clk 0:02:11]}  Qa8 {[%clk 0:01:18]} 22. f3 {[%clk 0:02:04]}  Rb8 {[%clk 0:01:17]} 23. b5 {[%clk 0:01:56]}  Qa7 {[%clk 0:01:13]} 24. Kf2 {[%clk 0:01:55]}  Ra8 {[%clk 0:01:09]} 25. Rc1 {[%clk 0:01:39]}  h5 {[%clk 0:01:09]} 26. Nb3 {[%clk 0:01:33]}  Qb8 {[%clk 0:00:59]} 27. Qb2 {[%clk 0:01:20]}  Qxh2 {[%clk 0:00:58]} 28. b6 {[%clk 0:01:12]}  h4 {[%clk 0:00:47]} 29. e4 {[%clk 0:00:45]}  h3 {[%clk 0:00:43]} 30. exd5 {[%clk 0:00:28]}  Qxg2+ {[%clk 0:00:40]} 31. Ke3 {[%clk 0:00:24]}  Nxd5+ {[%clk 0:00:33]} 32. Kd4 {[%clk 0:00:25]}  Qf2+ {[%clk 0:00:29]} 33. Ke5 {[%clk 0:00:21]}  Qe3+ {[%clk 0:00:23]} 34. Kd6 {[%clk 0:00:19]}  Rd8+ {[%clk 0:00:19]} 35. Kc6 {[%clk 0:00:15]}  Qxb6# {[%clk 0:00:19]} 0-1


[Site "https://www.chess.com"]